Workbook

Sheet с 12 лет
A1: Школа | C1: МАОУ "Верхнегородковская СОШ" | F1: Утвердил: | G1: должность | H1: Директор
A2: Типовое примерное меню приготавливаемых блюд | G2: фамилия | H2: Грудина Ю.В.
A3: Возрастная категория | E3: 7-11 лет | G3: дата | H3: 17 | I3: 11 | J3: 2025
H4: день | I4: месяц | J4: год
A5: Неделя | B5: День недели | C5: Прием пищи | D5: Раздел меню | E5: Блюда | F5: Вес блюда, г | G5: Белки | H5: Жиры | I5: Углеводы | J5: Калорийность | K5: № рецептуры | L5: Цена
A6: 1 | B6: 1 | C6: Завтрак | E6: Бутерброд с повидлом | F6: 60 | G6: 1.7 | H6: 4.3 | I6: 32.6 | J6: 176 | K6: 95
D7: гор.блюдо | E7: Каша рисовая вязкая | F7: 250 | G7: 6.28 | H7: 11.82 | I7: 37 | J7: 279.4 | K7: 253
D8: гор.напиток | E8: Кофейный напиток на сгущеном молоке | F8: 200 | G8: 2.9 | H8: 2 | I8: 20.9 | J8: 113 | K8: 500
D9: хлеб | E9: хлеб пшеничный | F9: 50 | G9: 3.8 | H9: 0.4 | I9: 24.6 | J9: 117.5 | K9: 108
D12: итого | F12: =SUM(F6:F11) -> 560 | G12: =SUM(G6:G11) -> 14.68 | H12: 18.52 | I12: 115.1 | J12: 685.9 | L12: =SUM(L6:L11) -> 0
A13: =A6 -> 1 | B13: =B6 -> 1 | C13: Завтрак 2 | D13: закуска
D14: гор.блюдо | E14: Борщ из свежей капусты | F14: 250 | G14: 1.32 | H14: 3.88 | I14: 5.6 | J14: 62.6 | K14: 126
D15: гарнир
D16: напиток | E16: Чай с сахаром | F16: 200 | G16: 0.1 | H16: 0 | I16: 15 | J16: 60 | K16: 493
D17: хлеб бел. | E17: хлеб пшеничный | F17: 50 | G17: 3.8 | H17: 0.4 | I17: 24.6 | J17: 117.5 | K17: 108
D18: хлеб черн.
D21: итого | F21: =SUM(F13:F20) -> 500 | G21: =SUM(G13:G20) -> 5.22 | H21: 4.28 | I21: 45.2 | J21: 240.1 | L21: =SUM(L13:L20) -> 0
A22: =A6 -> 1 | B22: =B6 -> 1 | C22: Итого за день: | F22: =F12+F21 -> 1060 | G22: =G12+G21 -> 19.9 | H22: =H12+H21 -> 22.8 | I22: =I12+I21 -> 160.3 | J22: =J12+J21 -> 926 | L22: =L12+L21 -> 0
A23: 1 | B23: 2 | C23: Завтрак | D23: гор.блюдо | E23: Кнели из куры с рисом | F23: 100 | G23: 17.28 | H23: 17.57 | I23: 7.4 | J23: 255.7 | K23: 411
D24: гарнир | E24: Макароны отварные | F24: 200 | G24: 7.54 | H24: 0.9 | I24: 38.72 | J24: 193.2 | K24: 291
D25: гор.напиток | E25: Компот из смеси сухофруктов | F25: 200 | G25: 0.5 | H25: 0 | I25: 27 | J25: 110 | K25: 508
D26: хлеб | E26: хлеб пшеничный | F26: 50 | G26: 3.8 | H26: 0.4 | I26: 24.6 | J26: 117.5 | K26: 108
D27: фрукты
D30: итого | F30: =SUM(F23:F29) -> 550 | G30: =SUM(G23:G29) -> 29.12 | H30: 18.87 | I30: 97.72 | J30: 676.4 | L30: 0
A31: =A23 -> 1 | B31: =B23 -> 2 | C31: Завтрак 2 | D31: закуска
D32: гор.блюдо | E32: Щи из свежей капусты с картофелем | F32: 250 | G32: 1.75 | H32: 4.97 | I32: 7.7 | J32: 66.4 | K32: 142
D33: 2 блюдо
D34: гарнир
D35: напиток | E35: Чай с сахаром | F35: 200 | G35: 0.1 | H35: 0 | I35: 15 | J35: 60 | K35: 493
D36: хлеб бел. | E36: хлеб пшеничный | F36: 50 | G36: 3.8 | H36: 0.4 | I36: 24.6 | J36: 117.5 | K36: 108
D37: хлеб черн.
D40: итого | F40: =SUM(F31:F39) -> 500 | G40: =SUM(G31:G39) -> 5.65 | H40: 5.37 | I40: 47.3 | J40: 243.9 | L40: 0
A41: =A23 -> 1 | B41: =B23 -> 2 | C41: Итого за день: | F41: =F30+F40 -> 1050 | G41: =G30+G40 -> 34.77 | H41: 24.24 | I41: 145.02 | J41: 920.3 | L41: 0
A42: 1 | B42: 3 | C42: Завтрак | D42: гор.блюдо | E42: Овощи натуральные соленые | F42: 100 | G42: 0.8 | H42: 0.1 | I42: 1.7 | J42: 13 | K42: 107
D43: гарнир | E43: Плов из отворной птицы | F43: 250 | G43: 22.85 | H43: 15.1 | I43: 54.14 | J43: 512.85 | K43: 406
D44: гор.напиток | E44: Чай с лимоном | F44: 200 | G44: 0.1 | H44: 0 | I44: 15.2 | J44: 61 | K44: 494
D45: хлеб | E45: хлеб пшеничный | F45: 50 | G45: 3.8 | H45: 0.4 | I45: 24.6 | J45: 117.5 | K45: 108
D46: фрукты
D49: итого | F49: =SUM(F42:F48) -> 600 | G49: =SUM(G42:G48) -> 27.55 | H49: 15.6 | I49: 95.64 | J49: 704.35 | L49: 0
A50: =A42 -> 1 | B50: =B42 -> 3 | C50: Завтрак 2 | D50: закуска
D51: гор.блюдо | E51: Суп картофельный с макаронными изделиями | F51: 250 | G51: 2.7 | H51: 2.85 | I51: 18.82 | J51: 111.25 | K51: 147
D52: 2 блюдо
D53: гарнир
D54: напиток | E54: Компот из свежих плодов и ягод | F54: 200 | G54: 0.5 | H54: 0.2 | I54: 23.1 | J54: 96 | K54: 507
D55: хлеб бел. | E55: хлеб пшеничный | F55: 50 | G55: 3.8 | H55: 0.4 | I55: 24.6 | J55: 117.5 | K55: 108
D56: хлеб черн.
D59: итого | F59: =SUM(F50:F58) -> 500 | G59: =SUM(G50:G58) -> 7 | H59: 3.45 | I59: 66.52 | J59: 324.75 | L59: 0
A60: =A42 -> 1 | B60: =B42 -> 3 | C60: Итого за день: | F60: =F49+F59 -> 1100 | G60: =G49+G59 -> 34.55 | H60: 19.05 | I60: 162.16 | J60: 1029.1 | L60: 0
A61: 1 | B61: 4 | C61: Завтрак | D61: закуска
D62: гор.блюдо | E62: Тефтели из говядины с рисом | F62: 100 | G62: 9.5 | H62: 15.3 | I62: 11.4 | J62: 221 | K62: 390
D63: гарнир | E63: Каша гречневая рассыпчатая | F63: 200 | G63: 11.4 | H63: 10.46 | I63: 49.44 | J63: 337.4 | K63: 237
D64: напиток | E64: Чай с сахаром | F64: 200 | G64: 0.1 | H64: 0 | I64: 15 | J64: 60 | K64: 493
D65: хлеб бел. | E65: хлеб пшеничный | F65: 50 | G65: 3.8 | H65: 0.4 | I65: 24.6 | J65: 117.5 | K65: 108
D66: хлеб черн.
D67: итого | F67: =SUM(F61:F66) -> 550 | G67: =SUM(G61:G66) -> 24.8 | H67: 26.16 | I67: 100.44 | J67: 735.9 | L67: 0
A68: =A61 -> 1 | B68: =B61 -> 4 | C68: Завтрак 2 | D68: закуска
D69: гор.блюдо
D70: 2 блюдо | E70: Омлет натуральный | F70: 150 | G70: 12.92 | H70: 20 | I70: 3.46 | J70: 244.61 | K70: 301
D71: гарнир
D72: напиток | E72: Чай с сахаром | F72: 200 | G72: 0.1 | H72: 0 | I72: 15 | J72: 60 | K72: 493
D73: хлеб бел. | E73: хлеб пшеничный | F73: 50 | G73: 3.8 | H73: 0.4 | I73: 24.6 | J73: 117.5 | K73: 108
D74: хлеб черн.
D77: итого | F77: =SUM(F68:F76) -> 400 | G77: =SUM(G68:G76) -> 16.82 | H77: 20.4 | I77: 43.06 | J77: 422.11 | L77: 0
A78: =A61 -> 1 | B78: =B61 -> 4 | C78: Итого за день: | F78: =F67+F77 -> 950 | G78: =G67+G77 -> 41.62 | H78: 46.56 | I78: 143.5 | J78: 1158.01 | L78: 0
A79: 1 | B79: 5 | C79: Завтрак | D79: гор.блюдо | E79: Голубцы ленивые | F79: 100 | G79: 8.5 | H79: 8.3 | I79: 4 | J79: 125 | K79: 372
D80: гарнир | E80: Макаронные изделия отварные | F80: 200 | G80: 7.54 | H80: 0.8 | I80: 38.72 | J80: 193.2 | K80: 291
D81: напиток | E81: Чай с сахаром | F81: 200 | G81: 0.1 | H81: 0 | I81: 15 | J81: 60 | K81: 493
D82: хлеб бел. | E82: хлеб пшеничный | F82: 50 | G82: 3.8 | H82: 0.4 | I82: 24.6 | J82: 117.5 | K82: 108
D83: фрукты
D86: итого | F86: =SUM(F79:F85) -> 550 | G86: =SUM(G79:G85) -> 19.94 | H86: 9.5 | I86: 82.32 | J86: 495.7 | L86: 0
A87: =A79 -> 1 | B87: =B79 -> 5 | C87: Завтрак 2 | D87: закуска
D88: гор.блюдо | E88: Суп картофельный с бобовыми изделиями | F88: 250 | G88: 2.3 | H88: 4.25 | I88: 15.12 | J88: 108 | K88: 144
D89: 2 блюдо
D90: гарнир
D91: напиток | E91: Чай с сахаром | F91: 200 | G91: 0.1 | H91: 0 | I91: 15 | J91: 60 | K91: 493
D92: хлеб бел. | E92: хлеб пшеничный | F92: 50 | G92: 3.8 | H92: 0.4 | I92: 24.6 | J92: 117.5 | K92: 108
D93: хлеб черн.
D96: итого | F96: =SUM(F87:F95) -> 500 | G96: =SUM(G87:G95) -> 6.2 | H96: 4.65 | I96: 54.72 | J96: 285.5 | L96: 0
A97: =A79 -> 1 | B97: =B79 -> 5 | C97: Итого за день: | F97: =F86+F96 -> 1050 | G97: =G86+G96 -> 26.14 | H97: 14.15 | I97: 137.04 | J97: 781.2 | L97: 0
A98: 2 | B98: 1 | C98: Завтрак | E98: Бутерброд с повидлом | F98: 60 | G98: 1.7 | H98: 4.3 | I98: 32.6 | J98: 176 | K98: 95
D99: гор.блюдо | E99: Каша из хлопьев овсянных Геркулес вязкая | F99: 250 | G99: 12.84 | H99: 21.18 | I99: 47.28 | J99: 431.1 | K99: 247
D100: гор.напиток | E100: Кисель плодово-ягодный | F100: 200 | G100: 1.4 | H100: 0 | I100: 29 | J100: 122 | K100: 503
D101: хлеб | E101: хлеб пшеничный | F101: 50 | G101: 3.8 | H101: 0.4 | I101: 24.6 | J101: 117.5 | K101: 108
D104: итого | F104: =SUM(F98:F103) -> 560 | G104: =SUM(G98:G103) -> 19.74 | H104: 25.88 | I104: 133.48 | J104: 846.6 | L104: =SUM(L98:L103) -> 0
A105: =A98 -> 2 | B105: =B98 -> 1 | C105: Завтрак 2 | D105: закуска
D106: 1 блюдо
D107: 2 блюдо | E107: Омлет натуральный | F107: 150 | G107: 11.2 | H107: 17.4 | I107: 3 | J107: 212 | K107: 301
D108: гарнир
D109: напиток | E109: Чай с сахаром | F109: 200 | G109: 0.1 | H109: 0 | I109: 15 | J109: 60 | K109: 493
D110: хлеб бел. | E110: хлеб пшеничный | F110: 50 | G110: 3.8 | H110: 0.4 | I110: 24.6 | J110: 117.5 | K110: 108
D111: хлеб черн.
D114: итого | F114: =SUM(F105:F113) -> 400 | G114: =SUM(G105:G113) -> 15.1 | H114: 17.8 | I114: 42.6 | J114: 389.5 | L114: =SUM(L105:L113) -> 0
A115: =A98 -> 2 | B115: =B98 -> 1 | C115: Итого за день: | F115: =F104+F114 -> 960 | G115: =G104+G114 -> 34.84 | H115: 43.68 | I115: 176.08 | J115: 1236.1 | L115: 0
A116: 2 | B116: 2 | C116: Завтрак | D116: гор.блюдо | E116: Курица в томатном соусе | F116: 100 | G116: 11.3 | H116: 11.25 | I116: 3.41 | J116: 160 | K116: 405
D117: гарнир | E117: Греча рассыпчатая | F117: 200 | G117: 11.4 | H117: 10.46 | I117: 49.44 | J117: 337.4 | K117: 237
D118: гор.напиток | E118: Чай с сахаром | F118: 200 | G118: 0.1 | H118: 0 | I118: 15 | J118: 60 | K118: 493
D119: хлеб | E119: хлеб пшеничный | F119: 50 | G119: 3.8 | H119: 0.4 | I119: 24.6 | J119: 117.5 | K119: 108
D120: фрукты
D123: итого | F123: =SUM(F116:F122) -> 550 | G123: =SUM(G116:G122) -> 26.6 | H123: 22.11 | I123: 92.45 | J123: 674.9 | L123: =SUM(L116:L122) -> 0
A124: =A116 -> 2 | B124: =B116 -> 2 | C124: Завтрак 2 | D124: закуска
D125: гор.блюдо | E125: Щи из свежей капусты со сметаной | F125: 250 | G125: 1.6 | H125: 4.8 | I125: 6.22 | J125: 75.75 | K125: 140
D126: 2 блюдо
D127: гарнир
D128: напиток | E128: Чай с сахаром | F128: 200 | G128: 0.1 | H128: 0 | I128: 15 | J128: 60 | K128: 493
D129: хлеб бел. | E129: хлеб пшеничный | F129: 50 | G129: 3.8 | H129: 0.4 | I129: 24.6 | J129: 117.5 | K129: 108
D130: хлеб черн.
D133: итого | F133: =SUM(F124:F132) -> 500 | G133: =SUM(G124:G132) -> 5.5 | H133: 5.2 | I133: 45.82 | J133: 253.25 | L133: =SUM(L124:L132) -> 0
A134: =A116 -> 2 | B134: =B116 -> 2 | C134: Итого за день: | F134: =F123+F133 -> 1050 | G134: =G123+G133 -> 32.1 | H134: 27.31 | I134: 138.27 | J134: 928.15 | L134: 0
A135: 2 | B135: 3 | C135: Завтрак | D135: гор.блюдо | E135: Фрикадельки из говядины паровые | F135: 100 | G135: 14.2 | H135: 12.6 | I135: 6.8 | J135: 197 | K135: 391
D136: гарнир | E136: Макароны отварные | F136: 200 | G136: 7.54 | H136: 0.8 | I136: 38.72 | J136: 193.2 | K136: 291
D137: гор.напиток | E137: Чай с сахаром | F137: 200 | G137: 0.1 | I137: 15 | J137: 60 | K137: 493
D138: хлеб | E138: хлеб пшеничный | F138: 50 | G138: 3.8 | H138: 0.4 | I138: 24.6 | J138: 117.5 | K138: 108
D139: фрукты
D142: итого | F142: =SUM(F135:F141) -> 550 | G142: =SUM(G135:G141) -> 25.64 | H142: 13.8 | I142: 85.12 | J142: 567.7 | L142: =SUM(L135:L141) -> 0
A143: =A135 -> 2 | B143: =B135 -> 3 | C143: Завтрак 2 | D143: закуска
D144: гор.блюдо | E144: Суп с рыбными консервами | F144: 200 | G144: 7.38 | H144: 5.7 | I144: 12.84 | J144: 133 | K144: 153
D145: 2 блюдо
D146: гарнир
D147: напиток | E147: Чай с сахаром | F147: 200 | G147: 0.1 | I147: 15 | J147: 60 | K147: 493
D148: хлеб бел. | E148: хлеб пшеничный | F148: 50 | G148: 3.8 | H148: 0.4 | I148: 24.6 | J148: 117.5 | K148: 108
D149: хлеб черн.
D152: итого | F152: =SUM(F143:F151) -> 450 | G152: =SUM(G143:G151) -> 11.28 | H152: 6.1 | I152: 52.44 | J152: 310.5 | L152: =SUM(L143:L151) -> 0
A153: =A135 -> 2 | B153: =B135 -> 3 | C153: Итого за день: | F153: =F142+F152 -> 1000 | G153: =G142+G152 -> 36.92 | H153: 19.9 | I153: 137.56 | J153: 878.2 | L153: 0
A154: 2 | B154: 4 | C154: Завтрак | D154: гор.блюдо | E154: Котлета рыбная | F154: 100 | G154: 13.9 | H154: 2.1 | I154: 9.6 | J154: 113 | K154: 345
D155: гарнир | E155: Рис отварной | F155: 200 | G155: 4.92 | H155: 8.1 | I155: 45.08 | J155: 272.8 | K155: 414
D156: гор.напиток | E156: Чай с сахаром | F156: 200 | G156: 0.1 | I156: 15 | J156: 60 | K156: 493
D157: хлеб | E157: хлеб пшеничный | F157: 50 | G157: 3.8 | H157: 0.4 | I157: 24.6 | J157: 117.5 | K157: 108
D158: фрукты
D161: итого | F161: =SUM(F154:F160) -> 550 | G161: =SUM(G154:G160) -> 22.72 | H161: 10.6 | I161: 94.28 | J161: 563.3 | L161: =SUM(L154:L160) -> 0
A162: =A154 -> 2 | B162: =B154 -> 4 | C162: Завтрак 2 | D162: закуска
D163: гор.блюдо | E163: Рассольник ленинградский | F163: 250 | G163: 2.05 | H163: 5.25 | I163: 16.25 | J163: 121.25 | K163: 134
D164: 2 блюдо
D165: гарнир
D166: напиток | E166: Чай с сахаром | F166: 200 | G166: 0.1 | I166: 15 | J166: 60 | K166: 493
D167: хлеб бел. | E167: хлеб пшеничный | F167: 50 | G167: 3.8 | H167: 0.4 | I167: 24.6 | J167: 117.5 | K167: 108
D168: хлеб черн.
D171: итого | F171: =SUM(F162:F170) -> 500 | G171: =SUM(G162:G170) -> 5.95 | H171: 5.65 | I171: 55.85 | J171: 298.75 | L171: =SUM(L162:L170) -> 0
A172: =A154 -> 2 | B172: =B154 -> 4 | C172: Итого за день: | F172: =F161+F171 -> 1050 | G172: =G161+G171 -> 28.67 | H172: 16.25 | I172: 150.13 | J172: 862.05 | L172: 0
A173: 2 | B173: 5 | C173: Завтрак | D173: закуска | E173: Овощи натуральные соленые | F173: 60 | G173: 0.95 | H173: 0.1 | I173: 2.6 | J173: 16.5 | K173: 107
D174: гор.блюдо | E174: Жаркое по домашнему | F174: 250 | G174: 21.25 | H174: 22 | I174: 17.87 | J174: 355 | K174: 396
D175: гарнир
D176: гор.напиток | E176: Компот из смеси сухофруктов | F176: 200 | G176: 0.5 | H176: 0 | I176: 27 | J176: 110 | K176: 508
D177: хлеб | E177: хлеб пшеничный | F177: 50 | G177: 3.8 | H177: 0.4 | I177: 24.6 | J177: 117.5 | K177: 108
D178: фрукты
D180: итого | F180: =SUM(F173:F179) -> 560 | G180: =SUM(G173:G179) -> 26.5 | H180: 22.5 | I180: 72.07 | J180: 599 | L180: =SUM(L173:L179) -> 0
A181: =A173 -> 2 | B181: =B173 -> 5 | C181: Завтрак 2 | D181: закуска
D182: гор.блюдо | E182: Суп картофельный с бобовыми | F182: 200 | G182: 1.84 | H182: 3.4 | I182: 12.1 | J182: 86.4 | K182: 144
D183: 2 блюдо
D184: гарнир
D185: напиток | E185: Чай с сахаром | F185: 200 | G185: 0.1 | I185: 15 | J185: 60 | K185: 493
D186: хлеб бел. | E186: хлеб пшеничный | F186: 50 | G186: 3.8 | H186: 0.4 | I186: 24.6 | J186: 117.5 | K186: 108
D187: хлеб черн.
D190: итого | F190: =SUM(F181:F189) -> 450 | G190: =SUM(G181:G189) -> 5.74 | H190: 3.8 | I190: 51.7 | J190: 263.9 | L190: =SUM(L181:L189) -> 0
A191: =A173 -> 2 | B191: =B173 -> 5 | C191: Итого за день: | F191: =F180+F190 -> 1010 | G191: =G180+G190 -> 32.24 | H191: 26.3 | I191: 123.77 | J191: 862.9 | L191: 0
C192: Среднее значение за период: | F192: =(F22+F41+F60+F78+F97+F115+F134+F153+F172+F191)/(IF(F22=0,0,1)+IF(F41=0,0,1)+IF(F60=0,0,1)+IF(F78=0,0,1)+IF(F97=0,0,1)+IF(F115=0,0,1)+IF(F134=0,0,1)+IF(F153=0,0,1)+IF(F172=0,0,1)+IF(F191=0,0,1)) -> 1028 | G192: =(G22+G41+G60+G78+G97+G115+G134+G153+G172+G191)/(IF(G22=0,0,1)+IF(G41=0,0,1)+IF(G60=0,0,1)+IF(G78=0,0,1)+IF(G97=0,0,1)+IF(G115=0,0,1)+IF(G134=0,0,1)+IF(G153=0,0,1)+IF(G172=0,0,1)+IF(G191=0,0,1)) -> 32.175 | H192: =(H22+H41+H60+H78+H97+H115+H134+H153+H172+H191)/(IF(H22=0,0,1)+IF(H41=0,0,1)+IF(H60=0,0,1)+IF(H78=0,0,1)+IF(H97=0,0,1)+IF(H115=0,0,1)+IF(H134=0,0,1)+IF(H153=0,0,1)+IF(H172=0,0,1)+IF(H191=0,0,1)) -> 26.024 | I192: =(I22+I41+I60+I78+I97+I115+I134+I153+I172+I191)/(IF(I22=0,0,1)+IF(I41=0,0,1)+IF(I60=0,0,1)+IF(I78=0,0,1)+IF(I97=0,0,1)+IF(I115=0,0,1)+IF(I134=0,0,1)+IF(I153=0,0,1)+IF(I172=0,0,1)+IF(I191=0,0,1)) -> 147.383 | J192: =(J22+J41+J60+J78+J97+J115+J134+J153+J172+J191)/(IF(J22=0,0,1)+IF(J41=0,0,1)+IF(J60=0,0,1)+IF(J78=0,0,1)+IF(J97=0,0,1)+IF(J115=0,0,1)+IF(J134=0,0,1)+IF(J153=0,0,1)+IF(J172=0,0,1)+IF(J191=0,0,1)) -> 958.201 | L192: =(L22+L41+L60+L78+L97+L115+L134+L153+L172+L191)/(IF(L22=0,0,1)+IF(L41=0,0,1)+IF(L60=0,0,1)+IF(L78=0,0,1)+IF(L97=0,0,1)+IF(L115=0,0,1)+IF(L134=0,0,1)+IF(L153=0,0,1)+IF(L172=0,0,1)+IF(L191=0,0,1)) -> 

Sheet с 12 лет (2)
A1: Школа | C1: МАОУ "Верхнегородковская СОШ" | F1: Утвердил: | G1: должность | H1: Директор
A2: Типовое примерное меню приготавливаемых блюд | G2: фамилия | H2: Грудина Ю.В.
A3: Возрастная категория | E3: 7-11 лет | G3: дата | H3: 17 | I3: 11 | J3: 2025
H4: день | I4: месяц | J4: год
A5: Неделя | B5: День недели | C5: Прием пищи | D5: Раздел меню | E5: Блюда | F5: Вес блюда, г | G5: Белки | H5: Жиры | I5: Углеводы | J5: Калорийность | K5: № рецептуры | L5: Цена
A6: 1 | B6: 1 | C6: Завтрак | E6: Бутерброд с повидлом | F6: 60 | G6: 1.7 | H6: 4.3 | I6: 32.6 | J6: 176 | K6: 95
D7: гор.блюдо | E7: Каша рисовая вязкая | F7: 250 | G7: 6.28 | H7: 11.82 | I7: 37 | J7: 279.4 | K7: 253
D8: гор.напиток | E8: Кофейный напиток на сгущеном молоке | F8: 200 | G8: 2.9 | H8: 2 | I8: 20.9 | J8: 113 | K8: 500
D9: хлеб | E9: хлеб пшеничный | F9: 50 | G9: 3.8 | H9: 0.4 | I9: 24.6 | J9: 117.5 | K9: 108
D12: итого | F12: =SUM(F6:F11) -> 560 | G12: =SUM(G6:G11) -> 14.68 | H12: 18.52 | I12: 115.1 | J12: 685.9 | L12: =SUM(L6:L11) -> 0
A13: =A6 -> 1 | B13: =B6 -> 1 | C13: Завтрак 2 | D13: Фрукт | E13: Фрукты свежие | F13: 100 | G13: 0.4 | H13: 0.4 | I13: 9.8 | J13: 47 | K13: 112
D14: гор.блюдо | E14: Борщ из свежей капусты | F14: 250 | G14: 1.32 | H14: 3.88 | I14: 5.6 | J14: 62.6 | K14: 126
D15: гарнир
D16: напиток | E16: Чай с сахаром | F16: 200 | G16: 0.1 | H16: 0 | I16: 15 | J16: 60 | K16: 493
D17: хлеб бел. | E17: хлеб пшеничный | F17: 50 | G17: 3.8 | H17: 0.4 | I17: 24.6 | J17: 117.5 | K17: 108
D18: хлеб черн.
D21: итого | F21: =SUM(F13:F20) -> 600 | G21: =SUM(G13:G20) -> 5.62 | H21: 4.68 | I21: 55 | J21: 287.1 | L21: =SUM(L13:L20) -> 0
A22: =A6 -> 1 | B22: =B6 -> 1 | C22: Итого за день: | F22: =F12+F21 -> 1160 | G22: =G12+G21 -> 20.3 | H22: =H12+H21 -> 23.2 | I22: =I12+I21 -> 170.1 | J22: =J12+J21 -> 973 | L22: =L12+L21 -> 0
A23: 1 | B23: 2 | C23: Завтрак | D23: гор.блюдо | E23: Кнели из куры с рисом | F23: 100 | G23: 17.28 | H23: 17.57 | I23: 7.4 | J23: 255.7 | K23: 411
D24: гарнир | E24: Макароны отварные | F24: 200 | G24: 7.54 | H24: 0.9 | I24: 38.72 | J24: 193.2 | K24: 291
D25: гор.напиток | E25: Компот из смеси сухофруктов | F25: 200 | G25: 0.5 | H25: 0 | I25: 27 | J25: 110 | K25: 508
D26: хлеб | E26: хлеб пшеничный | F26: 50 | G26: 3.8 | H26: 0.4 | I26: 24.6 | J26: 117.5 | K26: 108
D27: фрукты
D30: итого | F30: =SUM(F23:F29) -> 550 | G30: =SUM(G23:G29) -> 29.12 | H30: 18.87 | I30: 97.72 | J30: 676.4 | L30: 0
A31: =A23 -> 1 | B31: =B23 -> 2 | C31: Завтрак 2 | D31: закуска
D32: гор.блюдо | E32: Щи из свежей капусты с картофелем | F32: 250 | G32: 1.75 | H32: 4.97 | I32: 7.7 | J32: 66.4 | K32: 142
D33: 2 блюдо
D34: гарнир
D35: напиток | E35: Чай с сахаром | F35: 200 | G35: 0.1 | H35: 0 | I35: 15 | J35: 60 | K35: 493
D36: хлеб бел. | E36: хлеб пшеничный | F36: 50 | G36: 3.8 | H36: 0.4 | I36: 24.6 | J36: 117.5 | K36: 108
E37: Кондитерское изделие | F37: 100 | G37: 7.5 | H37: 9.8 | I37: 74.4 | J37: 417 | K37: 590
D40: итого | F40: =SUM(F31:F39) -> 600 | G40: =SUM(G31:G39) -> 13.15 | H40: 15.17 | I40: 121.7 | J40: 660.9 | L40: 0
A41: =A23 -> 1 | B41: =B23 -> 2 | C41: Итого за день: | F41: =F30+F40 -> 1150 | G41: =G30+G40 -> 42.27 | H41: 34.04 | I41: 219.42 | J41: 1337.3 | L41: 0
A42: 1 | B42: 3 | C42: Завтрак | D42: гор.блюдо | E42: Овощи натуральные соленые | F42: 100 | G42: 0.8 | H42: 0.1 | I42: 1.7 | J42: 13 | K42: 107
D43: гарнир | E43: Плов из отворной птицы | F43: 250 | G43: 22.85 | H43: 15.1 | I43: 54.14 | J43: 512.85 | K43: 406
D44: гор.напиток | E44: Чай с лимоном | F44: 200 | G44: 0.1 | H44: 0 | I44: 15.2 | J44: 61 | K44: 494
D45: хлеб | E45: хлеб пшеничный | F45: 50 | G45: 3.8 | H45: 0.4 | I45: 24.6 | J45: 117.5 | K45: 108
D46: фрукты
D49: итого | F49: =SUM(F42:F48) -> 600 | G49: =SUM(G42:G48) -> 27.55 | H49: 15.6 | I49: 95.64 | J49: 704.35 | L49: 0
A50: =A42 -> 1 | B50: =B42 -> 3 | C50: Завтрак 2 | D50: закуска
D51: гор.блюдо | E51: Суп картофельный с макаронными изделиями | F51: 250 | G51: 2.7 | H51: 2.85 | I51: 18.82 | J51: 111.25 | K51: 147
D52: 2 блюдо
D53: гарнир
D54: напиток | E54: Компот из свежих плодов и ягод | F54: 200 | G54: 0.5 | H54: 0.2 | I54: 23.1 | J54: 96 | K54: 507
D55: хлеб бел. | E55: хлеб пшеничный | F55: 50 | G55: 3.8 | H55: 0.4 | I55: 24.6 | J55: 117.5 | K55: 108
E57: Кондитерское изделие | F57: 100 | G57: 7.5 | H57: 9.8 | I57: 74.4 | J57: 417 | K57: 590
D59: итого | F59: =SUM(F50:F58) -> 600 | G59: =SUM(G50:G58) -> 14.5 | H59: 13.25 | I59: 140.92 | J59: 741.75 | L59: 0
A60: =A42 -> 1 | B60: =B42 -> 3 | C60: Итого за день: | F60: =F49+F59 -> 1200 | G60: =G49+G59 -> 42.05 | H60: 28.85 | I60: 236.56 | J60: 1446.1 | L60: 0
A61: 1 | B61: 4 | C61: Завтрак | D61: закуска
D62: гор.блюдо | E62: Тефтели из говядины с рисом | F62: 100 | G62: 9.5 | H62: 15.3 | I62: 11.4 | J62: 221 | K62: 390
D63: гарнир | E63: Каша гречневая рассыпчатая | F63: 200 | G63: 11.4 | H63: 10.46 | I63: 49.44 | J63: 337.4 | K63: 237
D64: напиток | E64: Чай с сахаром | F64: 200 | G64: 0.1 | H64: 0 | I64: 15 | J64: 60 | K64: 493
D65: хлеб бел. | E65: хлеб пшеничный | F65: 50 | G65: 3.8 | H65: 0.4 | I65: 24.6 | J65: 117.5 | K65: 108
D66: хлеб черн.
D67: итого | F67: =SUM(F61:F66) -> 550 | G67: =SUM(G61:G66) -> 24.8 | H67: 26.16 | I67: 100.44 | J67: 735.9 | L67: 0
A68: =A61 -> 1 | B68: =B61 -> 4 | C68: Завтрак 2 | D68: закуска
D69: гор.блюдо
D70: 2 блюдо | E70: Омлет натуральный | F70: 150 | G70: 12.92 | H70: 20 | I70: 3.46 | J70: 244.61 | K70: 301
D71: гарнир
D72: напиток | E72: Чай с сахаром | F72: 200 | G72: 0.1 | H72: 0 | I72: 15 | J72: 60 | K72: 493
D73: хлеб бел. | E73: хлеб пшеничный | F73: 50 | G73: 3.8 | H73: 0.4 | I73: 24.6 | J73: 117.5 | K73: 108
E75: Кондитерское изделие | F75: 100 | G75: 7.5 | H75: 9.8 | I75: 74.4 | J75: 417 | K75: 590
D77: итого | F77: =SUM(F68:F76) -> 500 | G77: =SUM(G68:G76) -> 24.32 | H77: 30.2 | I77: 117.46 | J77: 839.11 | L77: 0
A78: =A61 -> 1 | B78: =B61 -> 4 | C78: Итого за день: | F78: =F67+F77 -> 1050 | G78: =G67+G77 -> 49.12 | H78: 56.36 | I78: 217.9 | J78: 1575.01 | L78: 0
A79: 1 | B79: 5 | C79: Завтрак | D79: гор.блюдо | E79: Голубцы ленивые | F79: 100 | G79: 8.5 | H79: 8.3 | I79: 4 | J79: 125 | K79: 372
D80: гарнир | E80: Макаронные изделия отварные | F80: 200 | G80: 7.54 | H80: 0.8 | I80: 38.72 | J80: 193.2 | K80: 291
D81: напиток | E81: Чай с сахаром | F81: 200 | G81: 0.1 | H81: 0 | I81: 15 | J81: 60 | K81: 493
D82: хлеб бел. | E82: хлеб пшеничный | F82: 50 | G82: 3.8 | H82: 0.4 | I82: 24.6 | J82: 117.5 | K82: 108
D83: фрукты
D86: итого | F86: =SUM(F79:F85) -> 550 | G86: =SUM(G79:G85) -> 19.94 | H86: 9.5 | I86: 82.32 | J86: 495.7 | L86: 0
A87: =A79 -> 1 | B87: =B79 -> 5 | C87: Завтрак 2 | D87: Фрукт | E87: Фрукты свежие | F87: 100 | G87: 0.4 | H87: 0.4 | I87: 9.8 | J87: 47 | K87: 112
D88: гор.блюдо | E88: Суп картофельный с бобовыми изделиями | F88: 250 | G88: 2.3 | H88: 4.25 | I88: 15.12 | J88: 108 | K88: 144
D89: 2 блюдо
D90: гарнир
D91: напиток | E91: Чай с сахаром | F91: 200 | G91: 0.1 | H91: 0 | I91: 15 | J91: 60 | K91: 493
D92: хлеб бел. | E92: хлеб пшеничный | F92: 50 | G92: 3.8 | H92: 0.4 | I92: 24.6 | J92: 117.5 | K92: 108
D93: хлеб черн.
D96: итого | F96: =SUM(F87:F95) -> 600 | G96: =SUM(G87:G95) -> 6.6 | H96: 5.05 | I96: 64.52 | J96: 332.5 | L96: 0
A97: =A79 -> 1 | B97: =B79 -> 5 | C97: Итого за день: | F97: =F86+F96 -> 1150 | G97: =G86+G96 -> 26.54 | H97: 14.55 | I97: 146.84 | J97: 828.2 | L97: 0
A98: 2 | B98: 1 | C98: Завтрак | E98: Бутерброд с повидлом | F98: 60 | G98: 1.7 | H98: 4.3 | I98: 32.6 | J98: 176 | K98: 95
D99: гор.блюдо | E99: Каша из хлопьев овсянных Геркулес вязкая | F99: 250 | G99: 12.84 | H99: 21.18 | I99: 47.28 | J99: 431.1 | K99: 247
D100: гор.напиток | E100: Кисель плодово-ягодный | F100: 200 | G100: 1.4 | H100: 0 | I100: 29 | J100: 122 | K100: 503
D101: хлеб | E101: хлеб пшеничный | F101: 50 | G101: 3.8 | H101: 0.4 | I101: 24.6 | J101: 117.5 | K101: 108
D104: итого | F104: =SUM(F98:F103) -> 560 | G104: =SUM(G98:G103) -> 19.74 | H104: 25.88 | I104: 133.48 | J104: 846.6 | L104: =SUM(L98:L103) -> 0
A105: =A98 -> 2 | B105: =B98 -> 1 | C105: Завтрак 2 | D105: Фрукт | E105: Фрукты свежие | F105: 100 | G105: 0.4 | H105: 0.4 | I105: 9.8 | J105: 47 | K105: 112
D106: 2 блюдо | E106: Омлет натуральный | F106: 150 | G106: 11.2 | H106: 17.4 | I106: 3 | J106: 212 | K106: 301
D107: гарнир
D108: напиток | E108: Чай с сахаром | F108: 200 | G108: 0.1 | H108: 0 | I108: 15 | J108: 60 | K108: 493
D109: хлеб бел. | E109: хлеб пшеничный | F109: 50 | G109: 3.8 | H109: 0.4 | I109: 24.6 | J109: 117.5 | K109: 108
E111: Кондитерское изделие | F111: 100 | G111: 7.5 | H111: 9.8 | I111: 74.4 | J111: 417 | K111: 590
D113: итого | F113: =SUM(F105:F112) -> 600 | G113: =SUM(G105:G112) -> 23 | H113: 28 | I113: 126.8 | J113: 853.5 | L113: =SUM(L105:L112) -> 0
A114: =A98 -> 2 | B114: =B98 -> 1 | C114: Итого за день: | F114: =F104+F113 -> 1160 | G114: =G104+G113 -> 42.74 | H114: =H104+H113 -> 53.88 | I114: =I104+I113 -> 260.28 | J114: =J104+J113 -> 1700.1 | L114: =L104+L113 -> 0
A115: 2 | B115: 2 | C115: Завтрак | D115: гор.блюдо | E115: Курица в томатном соусе | F115: 100 | G115: 11.3 | H115: 11.25 | I115: 3.41 | J115: 160 | K115: 405
D116: гарнир | E116: Греча рассыпчатая | F116: 200 | G116: 11.4 | H116: 10.46 | I116: 49.44 | J116: 337.4 | K116: 237
D117: гор.напиток | E117: Чай с сахаром | F117: 200 | G117: 0.1 | H117: 0 | I117: 15 | J117: 60 | K117: 493
D118: хлеб | E118: хлеб пшеничный | F118: 50 | G118: 3.8 | H118: 0.4 | I118: 24.6 | J118: 117.5 | K118: 108
D119: фрукты
D122: итого | F122: =SUM(F115:F121) -> 550 | G122: =SUM(G115:G121) -> 26.6 | H122: 22.11 | I122: 92.45 | J122: 674.9 | L122: =SUM(L115:L121) -> 0
A123: =A115 -> 2 | B123: =B115 -> 2 | C123: Завтрак 2 | D123: закуска
D124: гор.блюдо | E124: Щи из свежей капусты со сметаной | F124: 250 | G124: 1.6 | H124: 4.8 | I124: 6.22 | J124: 75.75 | K124: 140
D125: 2 блюдо
D126: гарнир
D127: напиток | E127: Чай с сахаром | F127: 200 | G127: 0.1 | H127: 0 | I127: 15 | J127: 60 | K127: 493
D128: хлеб бел. | E128: хлеб пшеничный | F128: 50 | G128: 3.8 | H128: 0.4 | I128: 24.6 | J128: 117.5 | K128: 108
E129: Кондитерское изделие | F129: 100 | G129: 7.5 | H129: 9.8 | I129: 74.4 | J129: 417 | K129: 590
D132: итого | F132: =SUM(F123:F131) -> 600 | G132: =SUM(G123:G131) -> 13 | H132: 15 | I132: 120.22 | J132: 670.25 | L132: =SUM(L123:L131) -> 0
A133: =A115 -> 2 | B133: =B115 -> 2 | C133: Итого за день: | F133: =F122+F132 -> 1150 | G133: =G122+G132 -> 39.6 | H133: 37.11 | I133: 212.67 | J133: 1345.15 | L133: 0
A134: 2 | B134: 3 | C134: Завтрак | D134: гор.блюдо | E134: Фрикадельки из говядины паровые | F134: 100 | G134: 14.2 | H134: 12.6 | I134: 6.8 | J134: 197 | K134: 391
D135: гарнир | E135: Макароны отварные | F135: 200 | G135: 7.54 | H135: 0.8 | I135: 38.72 | J135: 193.2 | K135: 291
D136: гор.напиток | E136: Чай с сахаром | F136: 200 | G136: 0.1 | I136: 15 | J136: 60 | K136: 493
D137: хлеб | E137: хлеб пшеничный | F137: 50 | G137: 3.8 | H137: 0.4 | I137: 24.6 | J137: 117.5 | K137: 108
D138: фрукты
D141: итого | F141: =SUM(F134:F140) -> 550 | G141: =SUM(G134:G140) -> 25.64 | H141: 13.8 | I141: 85.12 | J141: 567.7 | L141: =SUM(L134:L140) -> 0
A142: =A134 -> 2 | B142: =B134 -> 3 | C142: Завтрак 2 | D142: закуска
D143: гор.блюдо | E143: Суп с рыбными консервами | F143: 200 | G143: 7.38 | H143: 5.7 | I143: 12.84 | J143: 133 | K143: 153
D144: 2 блюдо
D145: гарнир
D146: напиток | E146: Чай с сахаром | F146: 200 | G146: 0.1 | I146: 15 | J146: 60 | K146: 493
D147: хлеб бел. | E147: хлеб пшеничный | F147: 50 | G147: 3.8 | H147: 0.4 | I147: 24.6 | J147: 117.5 | K147: 108
D148: хлеб черн.
E149: Кондитерское изделие | F149: 100 | G149: 7.5 | H149: 9.8 | I149: 74.4 | J149: 417 | K149: 590
D151: итого | F151: =SUM(F142:F150) -> 550 | G151: =SUM(G142:G150) -> 18.78 | H151: 15.9 | I151: 126.84 | J151: 727.5 | L151: =SUM(L142:L150) -> 0
A152: =A134 -> 2 | B152: =B134 -> 3 | C152: Итого за день: | F152: =F141+F151 -> 1100 | G152: =G141+G151 -> 44.42 | H152: 29.7 | I152: 211.96 | J152: 1295.2 | L152: 0
A153: 2 | B153: 4 | C153: Завтрак | D153: гор.блюдо | E153: Котлета рыбная | F153: 100 | G153: 13.9 | H153: 2.1 | I153: 9.6 | J153: 113 | K153: 345
D154: гарнир | E154: Рис отварной | F154: 200 | G154: 4.92 | H154: 8.1 | I154: 45.08 | J154: 272.8 | K154: 414
D155: гор.напиток | E155: Чай с сахаром | F155: 200 | G155: 0.1 | I155: 15 | J155: 60 | K155: 493
D156: хлеб | E156: хлеб пшеничный | F156: 50 | G156: 3.8 | H156: 0.4 | I156: 24.6 | J156: 117.5 | K156: 108
D157: фрукты
D160: итого | F160: =SUM(F153:F159) -> 550 | G160: =SUM(G153:G159) -> 22.72 | H160: 10.6 | I160: 94.28 | J160: 563.3 | L160: =SUM(L153:L159) -> 0
A161: =A153 -> 2 | B161: =B153 -> 4 | C161: Завтрак 2 | D161: закуска
D162: гор.блюдо | E162: Рассольник ленинградский | F162: 250 | G162: 2.05 | H162: 5.25 | I162: 16.25 | J162: 121.25 | K162: 134
D163: 2 блюдо
D164: гарнир
D165: напиток | E165: Чай с сахаром | F165: 200 | G165: 0.1 | I165: 15 | J165: 60 | K165: 493
D166: хлеб бел. | E166: хлеб пшеничный | F166: 50 | G166: 3.8 | H166: 0.4 | I166: 24.6 | J166: 117.5 | K166: 108
D167: хлеб черн.
E168: Кондитерское изделие | F168: 100 | G168: 7.5 | H168: 9.8 | I168: 74.4 | J168: 417 | K168: 590
D170: итого | F170: =SUM(F161:F169) -> 600 | G170: =SUM(G161:G169) -> 13.45 | H170: 15.45 | I170: 130.25 | J170: 715.75 | L170: =SUM(L161:L169) -> 0
A171: =A153 -> 2 | B171: =B153 -> 4 | C171: Итого за день: | F171: =F160+F170 -> 1150 | G171: =G160+G170 -> 36.17 | H171: 26.05 | I171: 224.53 | J171: 1279.05 | L171: 0
A172: 2 | B172: 5 | C172: Завтрак | D172: закуска | E172: Овощи натуральные соленые | F172: 60 | G172: 0.95 | H172: 0.1 | I172: 2.6 | J172: 16.5 | K172: 107
D173: гор.блюдо | E173: Жаркое по домашнему | F173: 250 | G173: 21.25 | H173: 22 | I173: 17.87 | J173: 355 | K173: 396
D174: гарнир
D175: гор.напиток | E175: Компот из смеси сухофруктов | F175: 200 | G175: 0.5 | H175: 0 | I175: 27 | J175: 110 | K175: 508
D176: хлеб | E176: хлеб пшеничный | F176: 50 | G176: 3.8 | H176: 0.4 | I176: 24.6 | J176: 117.5 | K176: 108
D177: фрукты
D179: итого | F179: =SUM(F172:F178) -> 560 | G179: =SUM(G172:G178) -> 26.5 | H179: 22.5 | I179: 72.07 | J179: 599 | L179: =SUM(L172:L178) -> 0
A180: =A172 -> 2 | B180: =B172 -> 5 | C180: Завтрак 2 | D180: Фрукт | E180: Фрукты свежие | F180: 100 | G180: 0.4 | H180: 0.4 | I180: 9.8 | J180: 47 | K180: 112
D181: гор.блюдо | E181: Суп картофельный с бобовыми | F181: 200 | G181: 1.84 | H181: 3.4 | I181: 12.1 | J181: 86.4 | K181: 144
D182: 2 блюдо
D183: гарнир
D184: напиток | E184: Чай с сахаром | F184: 200 | G184: 0.1 | I184: 15 | J184: 60 | K184: 493
D185: хлеб бел. | E185: хлеб пшеничный | F185: 50 | G185: 3.8 | H185: 0.4 | I185: 24.6 | J185: 117.5 | K185: 108
D186: хлеб черн.
D189: итого | F189: =SUM(F180:F188) -> 550 | G189: =SUM(G180:G188) -> 6.14 | H189: 4.2 | I189: 61.5 | J189: 310.9 | L189: =SUM(L180:L188) -> 0
A190: =A172 -> 2 | B190: =B172 -> 5 | C190: Итого за день: | F190: =F179+F189 -> 1110 | G190: =G179+G189 -> 32.64 | H190: 26.7 | I190: 133.57 | J190: 909.9 | L190: 0
C191: Среднее значение за период: | F191: =(F22+F41+F60+F78+F97+F114+F133+F152+F171+F190)/(IF(F22=0,0,1)+IF(F41=0,0,1)+IF(F60=0,0,1)+IF(F78=0,0,1)+IF(F97=0,0,1)+IF(F114=0,0,1)+IF(F133=0,0,1)+IF(F152=0,0,1)+IF(F171=0,0,1)+IF(F190=0,0,1)) -> 1138 | G191: =(G22+G41+G60+G78+G97+G114+G133+G152+G171+G190)/(IF(G22=0,0,1)+IF(G41=0,0,1)+IF(G60=0,0,1)+IF(G78=0,0,1)+IF(G97=0,0,1)+IF(G114=0,0,1)+IF(G133=0,0,1)+IF(G152=0,0,1)+IF(G171=0,0,1)+IF(G190=0,0,1)) -> 37.585 | H191: =(H22+H41+H60+H78+H97+H114+H133+H152+H171+H190)/(IF(H22=0,0,1)+IF(H41=0,0,1)+IF(H60=0,0,1)+IF(H78=0,0,1)+IF(H97=0,0,1)+IF(H114=0,0,1)+IF(H133=0,0,1)+IF(H152=0,0,1)+IF(H171=0,0,1)+IF(H190=0,0,1)) -> 33.044 | I191: =(I22+I41+I60+I78+I97+I114+I133+I152+I171+I190)/(IF(I22=0,0,1)+IF(I41=0,0,1)+IF(I60=0,0,1)+IF(I78=0,0,1)+IF(I97=0,0,1)+IF(I114=0,0,1)+IF(I133=0,0,1)+IF(I152=0,0,1)+IF(I171=0,0,1)+IF(I190=0,0,1)) -> 203.383 | J191: =(J22+J41+J60+J78+J97+J114+J133+J152+J171+J190)/(IF(J22=0,0,1)+IF(J41=0,0,1)+IF(J60=0,0,1)+IF(J78=0,0,1)+IF(J97=0,0,1)+IF(J114=0,0,1)+IF(J133=0,0,1)+IF(J152=0,0,1)+IF(J171=0,0,1)+IF(J190=0,0,1)) -> 1268.901 | L191: =(L22+L41+L60+L78+L97+L114+L133+L152+L171+L190)/(IF(L22=0,0,1)+IF(L41=0,0,1)+IF(L60=0,0,1)+IF(L78=0,0,1)+IF(L97=0,0,1)+IF(L114=0,0,1)+IF(L133=0,0,1)+IF(L152=0,0,1)+IF(L171=0,0,1)+IF(L190=0,0,1)) -> 
